bitfinex/quotes_BTCUSD_20240906
["timestamp","ask_amount","ask_price","bid_price","bid_amount"]
[1725651360626,0.372962,53625.0,53618.0,0.03566132]
[1725651360836,0.372962,53625.0,53619.0,0.1705]
[1725651360837,0.372995,53620.0,53619.0,0.1705]
[1725651361256,0.186495,53621.0,53619.0,0.1705]
[1725651361699,0.372984,53622.0,53619.0,0.1705]
[1725651361700,0.559492,53620.0,53619.0,0.1705]
[1725651361910,0.01221759,53620.0,53619.0,0.24192765]
[1725651362324,0.372962,53625.0,53619.0,0.24192765]
[1725651362565,0.01221915,53620.0,53619.0,0.24192765]
[1725651362782,0.000816,53629.0,53624.0,0.01]
[1725651363017,0.000816,53629.0,53628.0,1.13619022]
[1725651363240,0.000816,53629.0,53628.0,1.15919022]
[1725651363491,0.000816,53629.0,53628.0,2.44449022]
[1725651363715,0.000816,53629.0,53628.0,1.87508222]
[1725651363929,0.000816,53629.0,53628.0,1.66703825]
[1725651364145,0.560214,53629.0,53628.0,1.66703825]
[1725651364330,0.01394535,53629.0,53628.0,1.66703825]
[1725651365039,0.57334335,53629.0,53628.0,1.66703825]
[1725651365254,0.01394535,53629.0,53628.0,1.66703825]
[1725651365837,0.20041135,53629.0,53628.0,1.66703825]
[1725651366295,0.20141135,53629.0,53628.0,1.67903825]
[1725651366526,0.01494535,53629.0,53628.0,1.54353825]
[1725651366967,0.001816,53629.0,53628.0,2.64768525]
[1725651367187,0.001816,53629.0,53628.0,2.63568525]
[1725651367188,0.000816,53629.0,53628.0,2.63568525]
[1725651367410,0.000816,53629.0,53628.0,2.26074625]
[1725651367621,0.000816,53629.0,53628.0,2.27274625]
[1725651367622,0.001816,53629.0,53628.0,2.27274625]
[1725651368310,0.74768,53629.0,53628.0,1.68033825]
[1725651368528,0.934146,53629.0,53628.0,1.36263825]
[1725651368753,0.94726462,53629.0,53628.0,1.36263825]
[1725651369208,0.94726462,53629.0,53616.0,0.02]
[1725651369209,0.559543,53615.0,53611.0,0.00164]
[1725651369450,0.186514,53615.0,53611.0,0.00164]
[1725651369678,0.19845668,53615.0,53611.0,0.00164]
[1725651369900,0.01194268,53615.0,53611.0,0.00164]
[1725651370340,0.186503,53619.0,53614.0,0.0197532]
[1725651370599,0.186503,53619.0,53614.0,0.0327532]
[1725651370600,0.19845463,53615.0,53614.0,0.0327532]
[1725651370794,0.932572,53615.0,53614.0,0.0197532]
[1725651371015,1.31756197,53615.0,53614.0,0.001772]
[1725651371718,1.79059097,53615.0,53614.0,0.001772]
[1725651371963,1.42840594,53615.0,53614.0,0.001772]
[1725651372181,1.05537694,53615.0,53614.0,0.001772]
[1725651372388,0.57150397,53615.0,53614.0,0.014772]
[1725651372616,0.57150397,53615.0,53614.0,0.0210832]
[1725651372826,0.19847497,53615.0,53614.0,0.0210832]
[1725651373044,0.19947497,53615.0,53614.0,0.0220832]
[1725651373475,0.01296097,53615.0,53614.0,0.0220832]
[1725651373692,0.01196097,53615.0,53614.0,0.0210832]
[1725651373913,0.19847497,53615.0,53614.0,0.0210832]
[1725651374129,0.559543,53615.0,53614.0,0.0340832]
[1725651374344,0.57146539,53615.0,53614.0,0.0340832]
[1725651375387,0.01192239,53615.0,53614.0,0.0340832]
[1725651375623,0.186514,53615.0,53614.0,0.0340832]
[1725651375841,0.57146539,53615.0,53614.0,0.0340832]
[1725651376277,0.01192239,53615.0,53614.0,0.0340832]
[1725651376729,0.186514,53615.0,53614.0,0.0340832]
[1725651376946,0.19843482,53615.0,53614.0,0.0340832]
[1725651377794,0.57146382,53615.0,53614.0,0.0340832]
[1725651378000,0.94449282,53615.0,53614.0,0.0340832]
[1725651378717,0.746058,53615.0,53614.0,0.0340832]
[1725651378952,0.94534967,53615.0,53614.0,0.0340832]
[1725651379185,0.57232067,53615.0,53614.0,0.0340832]
[1725651379389,0.19929167,53615.0,53614.0,0.0340832]
[1725651379609,0.57232067,53615.0,53614.0,0.0340832]
[1725651379822,1.31837867,53615.0,53614.0,0.0340832]
[1725651380028,1.31837867,53615.0,53614.0,0.014772]
[1725651383903,1.45147867,53615.0,53614.0,0.014772]
[1725651384332,1.82450767,53615.0,53614.0,0.014772]
[1725651384594,2.36786978,53615.0,53614.0,0.014772]
[1725651385278,2.7965007,53615.0,53614.0,0.014772]
[1725651385505,2.4074744,53615.0,53614.0,0.014772]
[1725651385738,1.41837867,53615.0,53614.0,0.014772]
[1725651385976,1.04534967,53615.0,53614.0,0.0203032]
[1725651386446,0.19929167,53615.0,53614.0,0.0203032]
[1725651386663,0.01277767,53615.0,53614.0,0.0203032]
[1725651386858,0.20029167,53615.0,53614.0,0.0203032]
[1725651387137,0.187514,53615.0,53614.0,0.0203032]
[1725651387365,0.19712817,53615.0,53614.0,0.0203032]
[1725651388322,0.19712817,53615.0,53614.0,0.0333032]
[1725651389293,0.01061417,53615.0,53614.0,0.0333032]
[1725651389548,0.01061417,53615.0,53614.0,0.0203032]
[1725651389793,0.19712817,53615.0,53614.0,0.0293032]
[1725651390040,0.01061417,53615.0,53614.0,0.0203032]
[1725651390501,0.01061417,53615.0,53614.0,0.0333032]
[1725651390738,0.373006,53619.0,53614.0,0.0333032]
[1725651390739,0.186508,53617.0,53614.0,0.0203032]
[1725651391026,0.01062038,53615.0,53614.0,0.0333032]
[1725651391283,0.186505,53618.0,53614.0,0.0333032]
[1725651391507,0.186505,53618.0,53615.0,0.18462989]
[1725651391726,0.000815,53620.0,53616.0,0.02179331]
[1725651391937,0.01061681,53617.0,53616.0,0.02179331]
[1725651392206,0.000815,53620.0,53616.0,0.02179331]
[1725651392430,0.01062217,53617.0,53616.0,0.02179331]
[1725651392677,0.000815,53620.0,53616.0,0.04479331]
[1725651392904,0.01061681,53617.0,53616.0,0.04479331]
[1725651393114,0.000815,53620.0,53616.0,1.45279331]
[1725651393335,0.000815,53620.0,53617.0,0.023]
[1725651393585,0.01061503,53619.0,53617.0,0.023]
[1725651394124,0.000815,53620.0,53617.0,0.023]
[1725651394305,0.01061681,53619.0,53618.0,0.09131771]
[1725651394504,0.000815,53620.0,53618.0,0.09504728]
[1725651394717,0.01061503,53619.0,53618.0,0.09131771]
[1725651394952,0.000815,53620.0,53618.0,0.11431771]
[1725651395183,0.94312181,53619.0,53618.0,0.09131771]
[1725651395405,0.93254,53617.0,53616.0,1.2753]
[1725651395637,1.46123363,53617.0,53616.0,1.2753]
[1725651395844,1.41655953,53617.0,53616.0,1.2753]
[1725651396058,1.69554428,53617.0,53616.0,1.2753]
[1725651396266,1.41655953,53617.0,53616.0,1.2753]
[1725651396478,1.47222207,53617.0,53616.0,1.2753]
[1725651396903,1.41655953,53617.0,53616.0,1.2753]
[1725651397107,1.47222207,53617.0,53616.0,1.2783]
[1725651397342,1.47222207,53617.0,53616.0,0.003]
[1725651397537,0.932572,53615.0,53614.0,0.001772]
[1725651397748,1.305601,53615.0,53614.0,0.001772]
[1725651397960,0.94355923,53615.0,53614.0,0.001772]
[1725651398817,0.57053023,53615.0,53614.0,0.001772]
[1725651399224,0.19750123,53615.0,53614.0,0.323172]
[1725651399440,0.19750123,53615.0,53614.0,0.0342532]
[1725651399441,0.94355923,53615.0,53614.0,0.0342532]
[1725651399642,0.57053023,53615.0,53614.0,0.001772]
[1725651400061,0.94355923,53615.0,53614.0,0.010772]
[1725651400269,0.94355923,53615.0,53614.0,0.001772]
[1725651400718,0.57053023,53615.0,53614.0,0.014772]
[1725651400912,0.94355923,53615.0,53614.0,0.014772]
[1725651401346,1.89315099,53615.0,53614.0,0.014772]
[1725651401554,2.11609725,53615.0,53614.0,0.014772]
[1725651401759,2.51696223,53615.0,53614.0,0.014772]
[1725651402400,2.14393323,53615.0,53614.0,0.014772]
[1725651402616,2.14393323,53615.0,53614.0,0.001772]
[1725651402824,2.51696223,53615.0,53614.0,0.001772]
[1725651403037,2.03258933,53615.0,53614.0,0.013772]
[1725651403262,2.03258933,53615.0,53614.0,0.001772]
[1725651403470,1.77202657,53615.0,53614.0,0.001772]
[1725651403683,1.85552308,53615.0,53614.0,0.006772]
[1725651403913,1.77202657,53615.0,53614.0,0.006772]
[1725651404117,1.59232657,53615.0,53614.0,0.006772]
[1725651404328,1.64799655,53615.0,53614.0,0.006772]
[1725651404736,1.51169655,53615.0,53614.0,0.006772]
[1725651405163,1.03866755,53615.0,53614.0,0.006772]
[1725651405397,0.98299757,53615.0,53614.0,0.006772]
[1725651405600,2.41151833,53615.0,53614.0,0.006772]
[1725651405823,2.78454733,53615.0,53614.0,0.001772]
[1725651406210,2.41151833,53615.0,53614.0,0.001772]
[1725651406648,2.78454733,53615.0,53614.0,0.004772]
[1725651406871,2.78454733,53615.0,53614.0,0.001772]
[1725651407290,2.5804783,53615.0,53614.0,0.001772]
[1725651407511,2.41151833,53615.0,53614.0,0.001772]
[1725651407721,2.41233333,53615.0,53614.0,0.001772]
[1725651407923,2.50164948,53615.0,53614.0,0.001772]
[1725651408151,2.69861081,53615.0,53614.0,0.001772]
[1725651408358,2.70861081,53615.0,53614.0,0.001772]
[1725651408824,2.081775,53612.0,53611.0,0.00164]
[1725651409046,2.54051334,53612.0,53611.0,0.00164]
[1725651409273,2.55094146,53612.0,53611.0,0.00164]
[1725651409517,2.54094146,53612.0,53611.0,0.00164]
[1725651409740,2.53094146,53612.0,53611.0,0.00164]
[1725651410159,2.54194146,53612.0,53611.0,0.00264]
[1725651410628,2.53094146,53612.0,53611.0,0.00164]
[1725651410855,2.53994146,53612.0,53611.0,0.00264]
[1725651411080,2.53294146,53612.0,53611.0,0.00164]
[1725651411270,2.5413911,53612.0,53611.0,0.00164]
[1725651412349,2.9244411,53612.0,53611.0,0.00164]
[1725651412558,2.9424411,53612.0,53611.0,0.00264]
[1725651412764,2.97166223,53612.0,53611.0,0.00264]
[1725651413178,2.96366223,53612.0,53611.0,0.00164]
[1725651413592,2.97766223,53612.0,53611.0,0.00264]
[1725651414028,2.97966223,53612.0,53611.0,0.00264]
[1725651414447,2.96566223,53612.0,53611.0,0.00164]
[1725651414653,2.96366223,53612.0,53611.0,0.00164]
[1725651415101,2.96566223,53612.0,53611.0,0.00164]
[1725651415311,2.96366223,53612.0,53611.0,0.00164]
[1725651416160,2.97766223,53612.0,53611.0,0.00164]
[1725651416626,2.99166223,53612.0,53611.0,0.00164]
[1725651417050,2.94366223,53612.0,53611.0,0.00164]
[1725651417261,2.95566223,53612.0,53611.0,0.00164]
[1725651418328,2.95766223,53612.0,53611.0,0.00164]
[1725651418756,2.9164411,53612.0,53611.0,0.00164]
[1725651419162,3.08325561,53612.0,53611.0,0.00164]
[1725651419397,2.9274411,53612.0,53611.0,0.00164]
[1725651419607,2.9254411,53612.0,53611.0,0.00164]
[1725651420046,3.11001495,53612.0,53611.0,0.00164]
[1725651420493,1.8944411,53612.0,53611.0,0.00164]
[1725651420707,1.85028238,53612.0,53611.0,0.00164]
[1725651420949,2.00641789,53612.0,53611.0,0.015064]
[1725651421184,2.07424072,53612.0,53611.0,0.00164]
[1725651421411,2.62203498,53612.0,53611.0,0.00164]
[1725651422487,2.63203498,53612.0,53611.0,0.00164]
[1725651422708,2.73203498,53612.0,53611.0,0.00164]
[1725651422918,2.72203498,53612.0,53611.0,0.00164]
[1725651423122,2.73103498,53612.0,53611.0,0.00164]
[1725651423515,2.72203498,53612.0,53611.0,0.00164]
[1725651423956,2.72803498,53612.0,53611.0,0.00164]
[1725651425236,2.55253498,53612.0,53611.0,0.00164]
[1725651425674,2.54653498,53612.0,53611.0,0.00164]
[1725651426105,2.55153498,53612.0,53611.0,0.00164]
[1725651426796,2.54853498,53612.0,53611.0,0.00164]
[1725651427009,2.54853498,53612.0,53601.0,0.00164]
[1725651427010,0.93455385,53602.0,53601.0,0.00164]
[1725651427232,0.93455385,53602.0,53579.0,0.1675]
[1725651427233,0.353884,53595.0,53588.0,0.4697]
[1725651427450,2.25125726,53595.0,53588.0,0.4697]
[1725651427669,2.25125726,53595.0,53581.0,0.4697]
[1725651427670,0.559888,53582.0,53581.0,0.4697]
[1725651427894,0.559888,53582.0,53574.0,0.1675]
[1725651427895,0.559962,53575.0,53574.0,0.1675]
[1725651428115,0.559962,53575.0,53568.0,0.4697]
[1725651428116,0.559962,53575.0,53569.0,0.1675]
[1725651428117,0.560004,53571.0,53569.0,0.1675]
[1725651428334,1.306676,53571.0,53569.0,0.1675]
[1725651428583,1.68980048,53571.0,53569.0,0.1675]
[1725651428789,1.95084984,53571.0,53569.0,0.1675]
[1725651429269,2.05084984,53571.0,53565.0,0.171]
[1725651429479,2.05084984,53571.0,53560.0,0.00162]
[1725651429480,2.45691554,53571.0,53560.0,0.00162]
[1725651429687,2.40128892,53571.0,53560.0,0.00162]
[1725651430146,2.40228892,53571.0,53560.0,0.00162]
[1725651430402,3.14970674,53571.0,53560.0,0.00162]
[1725651430593,3.20107118,53571.0,53560.0,0.00162]
[1725651430868,3.28452974,53571.0,53560.0,0.00162]
[1725651431094,0.933462,53564.0,53563.0,0.14154]
[1725651431517,0.57135863,53564.0,53563.0,0.14154]
[1725651431983,0.94474363,53564.0,53563.0,0.14154]
[1725651432195,0.57135863,53564.0,53563.0,0.169376]
[1725651432636,0.94474363,53564.0,53563.0,0.169376]
[1725651432880,0.01228163,53564.0,53563.0,0.175376]
[1725651433316,0.01228163,53564.0,53563.0,0.892164]
[1725651433526,0.01328163,53564.0,53563.0,1.265556]
[1725651433781,0.001,53564.0,53563.0,1.267556]
[1725651433990,0.001,53564.0,53563.0,1.271556]
[1725651434206,0.186649,53577.0,53568.0,0.497075]
[1725651434418,0.186662,53573.0,53570.0,0.1767]
[1725651435043,0.186668,53571.0,53570.0,0.1757]
[1725651435245,0.21589718,53573.0,53570.0,0.1757]
[1725651435456,0.02923418,53573.0,53570.0,0.1757]
[1725651435663,0.001,53573.0,53571.0,0.1937409]
[1725651435903,0.001,53573.0,53572.0,1.35777136]
[1725651436112,0.001,53573.0,53572.0,1.36977136]
[1725651436334,0.001,53573.0,53572.0,1.36917136]
[1725651436537,0.001,53573.0,53572.0,0.99584236]
[1725651436778,0.002,53573.0,53572.0,1.05934548]
[1725651437022,0.188661,53573.0,53572.0,0.1404]
[1725651437258,0.746644,53573.0,53572.0,0.1398]
[1725651437484,0.746644,53573.0,53570.0,0.01]
[1725651437485,0.93320291,53571.0,53570.0,0.01]
[1725651438006,0.186686,53566.0,53561.0,0.1806]
[1725651438254,0.01136997,53571.0,53561.0,0.18]
[1725651438255,0.373357,53568.0,53561.0,0.18]
[1725651438509,0.374322,53573.0,53562.0,0.036833]
[1725651438510,0.01136129,53565.0,53562.0,0.036833]
[1725651438786,0.001,53573.0,53562.0,0.036733]
[1725651439056,0.01136114,53564.0,53562.0,0.036733]
[1725651439308,0.001,53573.0,53560.0,0.00162]
[1725651439309,0.186703,53561.0,53560.0,0.00162]
[1725651439576,0.933515,53561.0,53560.0,0.00162]
[1725651439821,0.57144645,53561.0,53560.0,0.00162]
[1725651440076,0.19804045,53561.0,53560.0,0.00162]
[1725651440327,0.01133745,53561.0,53560.0,0.37062]
[1725651440585,0.01133745,53561.0,53560.0,0.183914]
[1725651440817,0.187703,53561.0,53560.0,0.183914]
[1725651441031,0.19804045,53561.0,53560.0,0.183914]
[1725651441238,0.57144645,53561.0,53560.0,0.363714]
[1725651441467,0.94585245,53561.0,53560.0,0.375714]
[1725651441911,0.94385245,53561.0,53560.0,0.363714]
[1725651442115,0.57044645,53561.0,53560.0,0.363714]
[1725651442318,0.57144645,53561.0,53560.0,0.377714]
[1725651442962,0.57144645,53561.0,53560.0,0.937832]
[1725651442963,0.01233745,53561.0,53560.0,0.937832]
[1725651443210,0.01333745,53561.0,53560.0,0.960832]
[1725651443422,0.001,53561.0,53560.0,1.334244]
[1725651443634,0.186681,53568.0,53563.0,0.186694]
[1725651443844,0.186677,53569.0,53566.0,0.1693]
[1725651444018,0.373355,53569.0,53566.0,0.1693]
[1725651444223,0.000816,53573.0,53566.0,0.1693]
[1725651444224,0.373337,53571.0,53566.0,0.1693]
[1725651444459,0.186678,53568.0,53567.0,0.0395217]
[1725651444836,0.185678,53568.0,53567.0,0.0395217]
[1725651445038,0.186678,53568.0,53567.0,0.0395217]
[1725651445259,0.186678,53568.0,53566.0,0.1693]
[1725651445260,0.560035,53568.0,53566.0,0.1693]
[1725651445467,1.306896,53562.0,53561.0,0.1693]
[1725651445882,0.560098,53562.0,53561.0,0.1693]
[1725651446091,0.186699,53562.0,53561.0,0.1693]
[1725651446296,1.306896,53562.0,53561.0,0.200274]
[1725651446914,1.33613484,53562.0,53561.0,0.030974]
[1725651447133,1.33713484,53562.0,53561.0,0.030974]
[1725651447545,1.33613484,53562.0,53561.0,0.030974]
[1725651447961,0.96373584,53562.0,53561.0,0.030974]
[1725651448175,0.96273584,53562.0,53561.0,0.030974]
[1725651448389,0.96273584,53562.0,53561.0,0.038974]
[1725651448390,0.96373584,53562.0,53561.0,0.038974]
[1725651448604,1.33713484,53562.0,53561.0,0.038974]
[1725651448808,1.33713484,53562.0,53561.0,0.030974]
[1725651449011,1.33613484,53562.0,53561.0,0.030974]
[1725651449231,2.1481832,53562.0,53561.0,0.009]
[1725651449503,2.2481832,53562.0,53561.0,0.009]
[1725651449698,1.81153384,53562.0,53561.0,0.009]
[1725651449901,1.43813484,53562.0,53561.0,0.009]
[1725651450109,1.43713484,53562.0,53561.0,0.009]
[1725651450317,1.43613484,53562.0,53561.0,0.009]
[1725651450524,1.306921,53561.0,53560.0,0.00162]
[1725651450732,1.780327,53561.0,53560.0,0.033324]
[1725651450940,1.780327,53561.0,53560.0,0.00162]
[1725651451372,1.406921,53561.0,53560.0,0.00162]
[1725651451812,1.31821134,53561.0,53560.0,0.13772]
[1725651452037,1.31921134,53561.0,53560.0,0.13772]
[1725651452286,0.94480534,53561.0,53560.0,0.168314]
[1725651452529,0.01129034,53561.0,53560.0,0.171314]
[1725651452751,0.01129034,53561.0,53560.0,0.55422]
[1725651452960,0.373356,53569.0,53560.0,0.740923]
[1725651452961,0.186688,53566.0,53560.0,0.740923]
[1725651453188,0.37337,53567.0,53562.0,0.186698]
[1725651453409,0.01128409,53565.0,53561.0,0.26011702]
[1725651453628,0.38465723,53566.0,53561.0,0.26011702]
[1725651453849,0.373381,53565.0,53561.0,0.25911702]
[1725651454083,0.000816,53573.0,53561.0,0.25911702]
[1725651454084,0.560098,53562.0,53561.0,0.1767]
[1725651454335,0.38468263,53564.0,53561.0,0.1767]
[1725651454613,0.19799771,53562.0,53561.0,0.1767]
[1725651454822,0.186699,53562.0,53561.0,0.2277752]
[1725651455031,0.57138626,53562.0,53561.0,0.2277752]
[1725651455286,0.57138626,53562.0,53560.0,0.00112]
[1725651455287,0.933515,53561.0,53560.0,0.00112]
[1725651455517,1.83627036,53561.0,53560.0,0.00112]
[1725651455730,2.22097582,53561.0,53560.0,0.00112]
[1725651458032,2.22097582,53561.0,53560.0,0.00212]
[1725651458242,1.41822046,53561.0,53560.0,0.00212]
[1725651458454,1.31822046,53561.0,53560.0,0.00212]
[1725651458666,1.31822046,53561.0,53560.0,0.019844]
[1725651458894,0.94481446,53561.0,53560.0,0.019844]
[1725651459083,0.97404207,53561.0,53560.0,0.018844]
[1725651460395,0.57140846,53561.0,53560.0,0.019844]
[1725651460605,0.94481446,53561.0,53560.0,0.019844]
[1725651460864,0.94581446,53561.0,53560.0,0.018844]
[1725651461050,0.94581446,53561.0,53560.0,0.026844]
[1725651461490,0.94681446,53561.0,53560.0,0.026844]
[1725651461701,0.94481446,53561.0,53560.0,0.018844]
[1725651461911,0.94581446,53561.0,53560.0,0.031844]
[1725651463034,1.31922046,53561.0,53560.0,0.01412]
[1725651463479,2.25217582,53561.0,53560.0,0.00112]
[1725651463693,2.39352544,53561.0,53560.0,0.00112]
[1725651464146,2.39352544,53561.0,53560.0,0.01212]
[1725651464580,2.39452544,53561.0,53560.0,0.01212]
[1725651464793,2.42176734,53561.0,53560.0,0.00112]
[1725651465022,2.42176734,53561.0,53560.0,0.00212]
[1725651465475,2.38141772,53561.0,53560.0,0.00212]
[1725651465701,2.38441772,53561.0,53560.0,0.00212]
[1725651465904,1.82386836,53561.0,53560.0,0.00212]
[1725651466336,1.82386836,53561.0,53560.0,0.00112]
[1725651466779,1.45046236,53561.0,53560.0,0.00112]
[1725651466988,1.46535654,53561.0,53560.0,0.00112]
[1725651467211,1.7234059,53561.0,53560.0,0.00112]
[1725651467731,1.7204059,53561.0,53560.0,0.00112]
[1725651467962,1.7194059,53561.0,53560.0,0.00112]
[1725651468197,1.7194059,53561.0,53560.0,0.00212]
[1725651468428,2.0928119,53561.0,53560.0,0.00212]
[1725651469114,2.0938119,53561.0,53560.0,0.00212]
[1725651469333,2.0938119,53561.0,53560.0,0.00112]
[1725651469648,2.0938119,53561.0,53560.0,0.00512]
[1725651470133,2.6356179,53561.0,53560.0,0.00512]
[1725651470337,2.6346179,53561.0,53560.0,0.00512]
[1725651470538,2.6356179,53561.0,53560.0,0.00512]
[1725651470755,2.6356179,53561.0,53560.0,0.00112]
[1725651470914,2.2612119,53561.0,53560.0,0.00112]
[1725651471122,2.6346179,53561.0,53560.0,0.00212]
[1725651471329,2.64628282,53561.0,53560.0,0.00212]
[1725651471574,2.27287682,53561.0,53560.0,0.00212]
[1725651472621,2.64628282,53561.0,53560.0,0.00212]
[1725651473376,2.27287682,53561.0,53560.0,0.00212]
[1725651473990,2.64628282,53561.0,53560.0,0.00212]
[1725651474194,2.27287682,53561.0,53560.0,0.00212]
[1725651474619,2.64628282,53561.0,53560.0,0.00212]
[1725651474824,2.27287682,53561.0,53560.0,0.00212]
[1725651475262,2.64928282,53561.0,53560.0,0.00212]
[1725651475463,2.27587682,53561.0,53560.0,0.00112]
[1725651475676,2.30912034,53561.0,53560.0,0.00112]
[1725651476104,2.68252634,53561.0,53560.0,0.00112]
[1725651477029,2.31211825,53561.0,53560.0,0.00112]
[1725651478562,0.93374,53548.0,53547.0,0.43563334]
[1725651478775,0.63179125,53561.0,53543.0,0.1725]
[1725651478776,0.186762,53544.0,53543.0,0.15070212]
[1725651478989,0.560286,53544.0,53543.0,0.13901984]
[1725651479232,0.96305562,53544.0,53543.0,0.13901984]
[1725651479448,0.97735295,53544.0,53543.0,0.16607582]
[1725651480127,1.35087695,53544.0,53543.0,0.16607582]
[1725651480357,0.97735295,53544.0,53543.0,0.16607582]
[1725651480803,1.35087695,53544.0,53543.0,0.16607582]
[1725651481028,0.97735295,53544.0,53543.0,0.16607582]
[1725651481248,1.32263133,53544.0,53543.0,0.16607582]
[1725651481462,0.560296,53543.0,53542.0,0.00014]
[1725651481668,0.933827,53543.0,53542.0,0.00014]
[1725651481868,1.307358,53543.0,53542.0,0.00014]
[1725651482082,1.32165533,53543.0,53542.0,0.00014]
[1725651482313,1.86690144,53543.0,53542.0,0.00014]
[1725651482542,1.9909933,53543.0,53542.0,0.00014]
[1725651483431,1.9909933,53543.0,53542.0,0.00114]
[1725651483860,2.04656748,53543.0,53542.0,0.00114]
[1725651484105,0.933932,53537.0,53536.0,0.16407424]
[1725651484317,0.933932,53537.0,53536.0,0.17744284]
[1725651484536,0.933932,53537.0,53519.0,0.43563334]
[1725651484537,0.560538,53520.0,53519.0,0.43563334]
[1725651484753,0.93423,53520.0,53519.0,0.137]
[1725651484975,0.9484347,53520.0,53519.0,0.137]
[1725651485622,0.0142047,53520.0,53519.0,0.323849]
[1725651485832,0.0142047,53520.0,53519.0,1.14128749]
[1725651485833,0.001,53520.0,53519.0,1.14128749]
[1725651486073,0.001,53520.0,53519.0,1.52498649]
[1725651486283,0.02925418,53524.0,53523.0,0.694306]
[1725651486487,0.92786836,53539.0,53523.0,0.39506765]
[1725651486755,0.24145288,53550.0,53538.0,0.76863265]
[1725651486756,0.186763,53544.0,53538.0,0.76863265]
[1725651487023,0.05557644,53552.0,53544.0,0.26126765]
[1725651487024,0.186758,53545.0,53544.0,0.26126765]
[1725651487243,0.373442,53556.0,53545.0,0.1294]
[1725651487456,0.08336466,53559.0,53554.0,0.1294]
[1725651487457,0.186711,53559.0,53554.0,0.1294]
[1725651487669,0.000816,53562.0,53554.0,0.1294]
[1725651487670,0.000816,53562.0,53558.0,0.1711]
[1725651487884,0.000816,53562.0,53561.0,0.26126765]
[1725651488323,0.03005307,53562.0,53561.0,1.11557665]
[1725651488546,0.03005307,53562.0,53561.0,1.92666111]
[1725651488547,0.000816,53562.0,53561.0,1.92666111]
[1725651489020,0.02923441,53572.0,53571.0,0.852204]
[1725651489236,0.05557644,53588.0,53571.0,0.852204]
[1725651489237,0.373224,53588.0,53572.0,1.237522]
[1725651489473,0.373197,53591.0,53572.0,1.237522]
[1725651489474,0.02923156,53583.0,53572.0,1.67825683]
[1725651489696,0.02923156,53583.0,53572.0,0.2922]
[1725651489697,0.55430836,53581.0,53572.0,0.2922]
[1725651489943,0.02923156,53583.0,53572.0,1.48678965]
[1725651490152,0.373274,53580.0,53572.0,0.74013165]
[1725651490371,0.188477,53573.0,53572.0,0.33226677]
[1725651490585,0.188477,53573.0,53572.0,0.60353442]
[1725651490586,0.562799,53573.0,53572.0,0.60353442]
[1725651490797,0.03104654,53573.0,53572.0,0.78919842]
[1725651491011,0.03204654,53573.0,53572.0,0.60353442]
[1725651491278,0.002816,53573.0,53572.0,0.60353442]
[1725651491495,0.002816,53573.0,53572.0,0.60253442]
[1725651491781,0.002816,53573.0,53572.0,0.59253442]
[1725651491945,0.001816,53573.0,53572.0,0.59253442]
[1725651492158,0.20621627,53573.0,53572.0,0.34426677]
[1725651492370,0.95286027,53573.0,53572.0,0.05206677]
[1725651492585,0.01855527,53573.0,53572.0,0.1644]
[1725651492797,0.01955527,53573.0,53572.0,0.1764]
[1725651493035,0.01851717,53573.0,53572.0,0.1764]
[1725651493243,0.01951717,53573.0,53572.0,0.1764]
[1725651493453,0.01851717,53573.0,53572.0,1.05439095]
[1725651493668,0.000816,53573.0,53572.0,1.620651]
[1725651493885,0.002816,53573.0,53572.0,1.657651]
[1725651494090,0.002816,53573.0,53572.0,1.659651]
[1725651494323,0.002816,53573.0,53572.0,1.92876973]
[1725651494525,0.55430836,53592.0,53591.0,0.3035]
[1725651494734,0.55430836,53592.0,53591.0,0.59511765]
[1725651494940,0.00082,53599.0,53591.0,0.59511765]
[1725651495183,0.00082,53599.0,53582.0,0.012]
[1725651495184,0.55992,53579.0,53572.0,0.013]
[1725651495400,0.186661,53573.0,53572.0,0.013]
[1725651495621,0.26126765,53582.0,53571.0,0.1283]
[1725651495622,0.04906119,53576.0,53571.0,0.1283]
[1725651495827,0.11086438,53585.0,53571.0,0.1283]
[1725651495828,0.00217171,53581.0,53572.0,0.1863]
[1725651496040,0.001,53573.0,53572.0,0.1863]
[1725651496259,0.002,53573.0,53572.0,0.1873]
[1725651496482,0.65875411,53587.0,53569.0,0.1723]
[1725651496483,0.560014,53570.0,53569.0,0.1723]
[1725651496700,0.26126765,53583.0,53562.0,0.01]
[1725651496701,0.01674714,53573.0,53562.0,0.1723]
[1725651496943,0.01674714,53573.0,53558.0,0.1723]
[1725651496944,0.373407,53561.0,53558.0,0.1723]
[1725651497160,0.26126765,53573.0,53558.0,0.1723]
[1725651497161,0.1867,53562.0,53559.0,0.03074]
[1725651497373,0.01674045,53560.0,53559.0,0.03074]
[1725651497592,0.02923631,53561.0,53559.0,0.03074]
[1725651497817,0.05638456,53576.0,53563.0,0.373386]
[1725651497818,0.373312,53575.0,53563.0,0.373386]
[1725651498029,0.11086438,53584.0,53562.0,0.002]
[1725651498030,0.02923478,53570.0,53565.0,0.535177]
[1725651498264,0.02923478,53570.0,53565.0,0.1618]
[1725651498265,0.186679,53568.0,53565.0,0.1618]
[1725651498467,0.373346,53570.0,53565.0,0.1618]
[1725651498683,0.1,53580.0,53566.0,0.02136686]
[1725651498891,0.92753736,53587.0,53566.0,0.02136686]
[1725651498892,0.55430836,53587.0,53571.0,0.1773]
[1725651499124,0.373291,53578.0,53572.0,0.023]
[1725651499345,0.373291,53578.0,53571.0,0.18103262]
[1725651499346,0.55430836,53587.0,53571.0,0.1773]
[1725651499634,0.559993,53572.0,53571.0,0.1773]
[1725651499839,0.933322,53572.0,53571.0,0.2091]
[1725651500049,0.933322,53572.0,53561.0,0.186701]
[1725651500050,0.186683,53567.0,53561.0,0.186701]
[1725651500264,0.186697,53563.0,53555.0,0.186722]
[1725651500487,0.186697,53563.0,53551.0,0.186736]
[1725651500488,0.373393,53563.0,53551.0,0.186736]
[1725651500699,0.02,53569.0,53551.0,0.186736]
[1725651500700,0.02,53569.0,53557.0,0.186716]
[1725651500701,0.186694,53564.0,53557.0,0.186716]
[1725651500919,0.186703,53561.0,53555.0,0.186722]
[1725651501131,0.186703,53561.0,53551.0,0.18475239]